Cogmind - Beta 17.1 @@@ ROGUE MODE // 2026.08.30 @ 22:02:05 Player: flowerfeast Result: Destroyed by S-27 Virus with Autogun Performance ------------- Evolutions (6) 3000 Regions Visited (7) 1400 Robots Destroyed (24) 120 Value Destroyed (848) 848 Prototype IDs (21) 420 Alien Tech Used (0) 0 Bonus (800) 800 TOTAL SCORE: 6588 Bonus ------- Registered with UFD 300 Met Optimus in HQ 500 Cogmind --------- Core Integrity 0/1150 Matter 290/300 Energy 100/100 System Corruption 23% Temperature Cool (0) Movement Core (200) Ox3 Location -4/Factory Parts ------- > --- POWER (2) -------- (None) > --- PROPULSION (4) --- (None) > --- UTILITY (10) ----- Medium Storage Unit Melee Analysis Suite Improved Target Analyzer Advanced Target Analyzer > --- WEAPON (3) ------- (None) > --- INVENTORY (10) --- Improved Antigrav System Advanced Hacking Suite Peak State ------------ > --- POWER ------------ Light Deuterium Engine Light Angular Momentum Engine > --- PROPULSION ------- Myomer Leg Wheel VTOL Module > --- UTILITY ---------- Melee Analysis Suite Melee Analysis Suite Melee Analysis Suite Advanced Target Analyzer Advanced Target Analyzer Core Analyzer Core Shielding Improved Propulsion Shielding Improved Propulsion Shielding A0-MCA's Component Scanner > --- WEAPON ----------- Great Maul Power Maul Companion Sword > --- INVENTORY -------- Light Angular Momentum Engine Advanced Hacking Suite Improved System Restoration Module [Rating: 75] Favorites ----------- Power Ion Engine Engine Ion Engine Power Core Light Nuclear Core Reactor Light Antimatter Reactor Propulsion Light Treads Treads Light Treads Leg Myomer Leg Wheel Wheel Flight Unit VTOL Module Utility Melee Analysis Suite Device Graphene Brace Storage Small Storage Unit Processor Melee Analysis Suite Protection Improved Propulsion Shielding Weapon Companion Sword Energy Gun Particle Gun Ballistic Gun Assault Rifle Impact Weapon Power Maul Slashing Weapon Companion Sword Build | -11 -10 -10 -10 -9 -6 -5 -4 ------- Run | Yrd Mat Min Sub Scr Fac Fac Fac Slots Evolved 12 | . . . . . 8 2 2 Power 1 | . . . . . 1 . . Propulsion 2 | . . . . . 2 . . Utility 8 | . . . . . 5 1 2 Weapon 1 | . . . . . . 1 . Parts Attached 52 | 6 . 3 . 4 18 2 19 Power 9 | 1 . . . . 3 . 5 Engine 4 | 1 . . . . 1 . 2 Core 4 | . . . . . 2 . 2 Reactor 1 | . . . . . . . 1 Propulsion 12 | 2 . 2 . 1 2 . 5 Treads 3 | . . 2 . 1 . . . Leg 1 | . . . . . . . 1 Wheel 6 | 2 . . . . . . 4 Hover . | . . . . . . . . Flight 2 | . . . . . 2 . . Utility 24 | 1 . . . 1 12 1 9 Device 3 | . . . . . 1 . 2 Storage 2 | 1 . . . . . . 1 Processor 11 | . . . . 1 5 1 4 Hackware . | . . . . . . . . Protection 8 | . . . . . 6 . 2 Artifact . | . . . . . . . . Weapon 7 | 2 . 1 . 2 1 1 . Energy Gun 1 | . . 1 . . . . . Energy Cannon . | . . . . . . . . Ballistic Gun 2 | 2 . . . . . . . Ballistic Cannon . | . . . . . . . . Launcher . | . . . . . . . . Special Weapon . | . . . . . . . . Impact Weapon 3 | . . . . 1 1 1 . Slashing Weapon 1 | . . . . 1 . . . Piercing Weapon . | . . . . . . . . Special Melee Weapon . | . . . . . . . . Unidentified Prototypes . | . . . . . . . . Parts Lost 40 | . . . . 1 12 . 27 Power 7 | . . . . . 3 . 4 Propulsion 11 | . . . . 1 3 . 7 Utility 18 | . . . . . 5 . 13 Weapon 4 | . . . . . 1 . 3 Highest Loss Streak 10 | . . . . 1 5 . 10 To Critical Strikes . | . . . . . . . . Average Backups 5 | 2 4 4 4 6 4 3 3 Power 1 | . 1 1 2 2 1 2 1 Propulsion . | 2 2 1 1 1 1 . . Utility . | . . . . . 1 1 2 Weapon 2 | . 1 1 1 3 . . . Tool/Special . | . . . . . . . . Unused Backups 7 | . . 1 . 1 2 1 2 Power 1 | . . 1 . . . . . Propulsion 1 | . . . . . . . 1 Utility 3 | . . . . . 1 1 1 Weapon 2 | . . . . 1 1 . . Tool/Special . | . . . . . . . . Average Slot Usage (%) 65 | . 85 84 85 61 57 81 71 Engine 9 | . 14 14 14 14 2 5 3 Treads 16 | . . 27 28 27 3 . . Wheel 1 | . 28 . . . 3 5 5 Flight 1 | . . . . . 4 5 3 Storage 8 | . 14 14 14 14 2 . . Processor 10 | . . . . 3 17 28 26 Protection 4 | . . . . . 8 17 10 Energy Gun 1 | . . 10 14 . . . . Ballistic Gun 1 | . 28 16 14 . . . . Impact Weapon 2 | . . . . . 2 11 7 Slashing Weapon 2 | . . . . . 6 5 4 Peak Build Rating 75 | 6 6 7 7 24 45 50 75 Average Rating 23 | 3 6 6 7 7 32 49 60 On Entrance 17 | . 6 6 7 7 23 43 50 Avg Prop Armor Cover (%) 6 | . . . . . 5 5 8 Naked Turns . | . . . . . . . . Heaviest Build 42 | 14 14 15 15 16 38 21 42 Greatest Support 52 | 20 20 40 40 40 40 10 52 Greatest Overweight (x) 12 | . . . . . 3 2 12 Average Overweight (x) . | . . . . . 1 2 . Largest Inventory Capacity 10 | 8 8 8 8 8 8 5 10 Average Capacity 7 | 7 8 8 8 8 6 5 5 Most Carried 8 | 4 4 6 4 8 7 4 5 Average Carried 5 | 2 4 4 4 6 4 3 3 Final Capacity 10 | 8 8 8 8 8 5 5 10 Final Carried 8 | 4 4 4 4 8 5 4 2 Class Distribution -------------------- 73% | Mutant 25% | Gladiator Dominant Class ---------------- Mutant | -10/Materials Mutant | -10/Mines Mutant | -10/Subcaves Mutant | -9/Scraptown Mutant | -6/Factory Gladiator | -5/Factory Gladiator | -4/Factory Resources | -11 -10 -10 -10 -9 -6 -5 -4 ----------- Run | Yrd Mat Min Sub Scr Fac Fac Fac Matter Collected 711 | 207 . 149 . 28 140 . 187 Remotely . | . . . . . . . . Salvage Created 921 | . . 184 . 28 348 . 361 Parts 53 | . . 12 . . 15 . 26 Haulers Intercepted . | . . . . . . . . Recyclers Shooed . | . . . . . . . . Parts Field Recycled . | . . . . . . . . Retrieved Matter . | . . . . . . . . Parts Self-Destructed . | . . . . . . . . Prevented . | . . . . . . . . Parts Restored . | . . . . . . . . Kills | -11 -10 -10 -10 -9 -6 -5 -4 ------- Run | Yrd Mat Min Sub Scr Fac Fac Fac Combat Hostiles Destroyed 19 | . . 4 . . 10 . 5 Melee 14 | . . . . . 9 . 5 Guns 4 | . . 4 . . . . . Classes Destroyed 10 | . . 1 . 1 4 . 4 Worker 1 | . . . . . . . 1 Builder 1 | . . . . . . . 1 Recycler 1 | . . . . . . . 1 Operator 1 | . . . . . 1 . . Turret 1 | . . . . 1 . . . Swarmer 9 | . . . . . 7 . 2 Grunt 5 | . . 4 . . 1 . . Sentry 1 | . . . . . 1 . . Hunter 1 | . . . . . . . 1 Programmer 3 | . . . . . 1 . 2 Best Kill Streak 4 | . . 4 . 1 4 . 2 Combat Bots Only 4 | . . 4 . . 4 . 2 Max Kills in Single Turn 1 | . . 1 . 1 1 . 1 Gunslinging . | . . . . . . . . Exploded . | . . . . . . . . Melee 1 | . . . . . 1 . 1 Uniques/NPCs Destroyed . | . . . . . . . . Combat | -11 -10 -10 -10 -9 -6 -5 -4 -------- Run | Yrd Mat Min Sub Scr Fac Fac Fac Hostile Shots Fired 532 | . . 24 . 26 145 4 333 Missed 165 | . . 5 . 12 50 2 96 Hits 367 | . . 19 . 14 95 2 237 Projectile 367 | . . 19 . 14 95 2 237 Critical Strikes 7 | . . . . 1 2 . 4 Actively Blocked 3 | . . . . . . . 3 Damage Taken 6772 | . . 252 . 571 1331 47 4571 Core 1805 | . . 60 . 151 436 . 1158 Absorbed by Shields . | . . . . . . . . Redirected to Shielding 267 | . . . . . 53 . 214 Core Remaining (%) 65 | 100 . . . 15 48 100 . Volleys Fired 11 | . . 11 . . . . . Largest 2 | . . 2 . . . . . Hottest 40 | . . 40 . . . . . Shots Fired 22 | . . 22 . . . . . Gun 22 | . . 22 . . . . . Cannon . | . . . . . . . . Launcher . | . . . . . . . . Special . | . . . . . . . . Kinetic 22 | . . 22 . . . . . Thermal . | . . . . . . . . Explosive . | . . . . . . . . Electromagnetic . | . . . . . . . . Robot Hit Streak 10 | . . 10 . . . . . Robot Miss Streak 1 | . . 1 . . . . . Penetration Max . | . . . . . . . . Secondary Targets 1 | . . 1 . . . . . Max Gunslinging Chain 1 | . . 1 . . . . . Shots Hit Robots 87 | . . 20 . 4 40 . 23 Core Hits 26 | . . 9 . 1 10 . 6 Critical Kills . | . . . . . . . . Critical Parts Destroyed 2 | . . . . . 1 . 1 Critical Strikes 4 | . . . . . 1 . 3 Smash 2 | . . . . . 1 . 1 Melee Attacks 120 | . . . . 13 49 . 58 Impact 10 | . . . . 4 2 . 4 Slashing 110 | . . . . 9 47 . 54 Piercing . | . . . . . . . . Sneak Attacks 5 | . . . . . 2 . 3 Combat Hostiles . | . . . . . . . . Follow-up Attacks 6 | . . . . 1 3 . 2 Damage Inflicted 3304 | . . 265 . 147 1785 . 1107 Guns 262 | . . 262 . . . . . Cannons . | . . . . . . . . Explosions . | . . . . . . . . Melee 3039 | . . . . 147 1785 . 1107 Ramming 3 | . . 3 . . . . . Kinetic 262 | . . 262 . . . . . Thermal . | . . . . . . . . Explosive . | . . . . . . . . Electromagnetic . | . . . . . . . . Impact 205 | . . . . 40 79 . 86 Slashing 2834 | . . . . 107 1706 . 1021 Piercing . | . . . . . . . . Highest Corruption 23 | . . . . 3 5 . 23 Average Corruption 13 | . . . . 3 4 . 19 Corruption Purged . | . . . . . . . . Corruption Blocked . | . . . . . . . . Effects 21 | . . . . . 4 . 17 Message Errors 5 | . . . . . . . 5 Matter Fused 5 | . . . . . 1 . 4 Heat Flow Errors 5 | . . . . . 2 . 3 Energy Discharges 2 | . . . . . . . 2 Data Loss (minor) 3 | . . . . . 1 . 2 Data Loss (major) 1 | . . . . . . . 1 Overload Shots . | . . . . . . . . Overflow Damage 453 | . . . . 14 223 . 216 Projectiles . | . . . . . . . . Explosions . | . . . . . . . . Melee 453 | . . . . 14 223 . 216 Knockbacks 1 | . . . . . . . 1 Impact 1 | . . . . . . . 1 Kinetic . | . . . . . . . . Secondary . | . . . . . . . . Self-Inflicted Damage . | . . . . . . . . Shots . | . . . . . . . . Rammed 1 | . . 1 . . . . . Targets Rammed 1 | . . 1 . . . . . Kicked . | . . . . . . . . Crushed . | . . . . . . . . Highest Temperature 268 | . . 11 . 17 268 . 260 Average Temperature 87 | . . 4 . 17 125 . 115 Received Heat Transfer 532 | . . 144 . 139 186 . 63 Effects 1 | . . . . . . . 1 Interference 1 | . . . . . . . 1 Siege Activations . | . . . . . . . . Martial Activations . | . . . . . . . . Shielding Activations . | . . . . . . . . Robots Disrupted . | . . . . . . . . Combat Hostiles . | . . . . . . . . Robots Corrupted 1 | . . . . . 1 . . Combat Hostiles 1 | . . . . . 1 . . Parts Fried 3 | . . . . . 3 . . Impact Corruptions 4 | . . . . . 3 . 1 Robots Melted . | . . . . . . . . Combat Hostiles . | . . . . . . . . Parts Melted . | . . . . . . . . Heat Transferred . | . . . . . . . . Parts Sabotaged . | . . . . . . . . Parts Stolen . | . . . . . . . . Parts Stripped . | . . . . . . . . Power Chain Reactions . | . . . . . . . . Alert | -11 -10 -10 -10 -9 -6 -5 -4 ------- Run | Yrd Mat Min Sub Scr Fac Fac Fac Maximum Alert Level . | . . . . . . . . Low Security (%) 100 | 100 100 100 . . 100 100 100 Level 1 . | . . . . . . . . Level 2 . | . . . . . . . . Level 3 . | . . . . . . . . Level 4 . | . . . . . . . . Level 5 . | . . . . . . . . High Security . | . . . . . . . . Max Security . | . . . . . . . . Peak Influence 111 | . . 80 . . 75 . 111 Initial . | . . . . . . . . Average 12 | . . 25 . . 15 . 7 Influence Increases 688 | . . 100 . . 295 . 293 Destroy 0b10 Robot/C 380 | . . 80 . . 200 . 100 Destroy 0b10 Robot/NC 20 | . . . . . 5 . 15 Destroy Leader 80 | . . 20 . . 40 . 20 Successful Hack 5 | . . . . . 5 . . Destroy Structure 8 | . . . . . . . 8 Lose Combat Pursuer 195 | . . . . . 45 . 150 Influence Decreases 643 | . . 100 . . 295 . 248 Time Decay 455 | . . 100 . . 245 . 110 Lost Part 188 | . . . . . 50 . 138 Squads Dispatched 3 | . . . . . 2 . 1 Investigation . | . . . . . . . . Extermination 2 | . . . . . 1 . 1 Reinforcement 1 | . . . . . 1 . . Assault . | . . . . . . . . Garrison . | . . . . . . . . Intercept . | . . . . . . . . Searches Triggered . | . . . . . . . . Construction Impeded . | . . . . . . . . Haulers Reinforced . | . . . . . . . . Active Scanning Responses . | . . . . . . . . Cargo Convoy Interrupts . | . . . . . . . . Stealth | -11 -10 -10 -10 -9 -6 -5 -4 --------- Run | Yrd Mat Min Sub Scr Fac Fac Fac Distress Signals 3 | . 1 . . . . . 2 Communications Jammed . | . . . . . . . . Distress Signals . | . . . . . . . . Times Spotted 63 | . 3 4 . 7 14 3 32 Peak Tracking Total 9 | . 3 4 . 3 4 3 9 Tactical Retreats 9 | . . . . . 3 . 6 Traps | -11 -10 -10 -10 -9 -6 -5 -4 ------- Run | Yrd Mat Min Sub Scr Fac Fac Fac Traps Triggered 2 | . . . . . 2 . . Indirectly . | . . . . . . . . Trap Hack Attempts . | . . . . . . . . Triggered . | . . . . . . . . Disarmed . | . . . . . . . . Reprogrammed . | . . . . . . . . Reused . | . . . . . . . . Traps Extracted . | . . . . . . . . Installed . | . . . . . . . . Triggered . | . . . . . . . . Machines | -11 -10 -10 -10 -9 -6 -5 -4 ---------- Run | Yrd Mat Min Sub Scr Fac Fac Fac Machines Disabled . | . . . . . . . . Max in Single Turn . | . . . . . . . . Machines Repaired . | . . . . . . . . Machines Dismantled . | . . . . . . . . Machines Sabotaged . | . . . . . . . . Overloaded Fab Kills . | . . . . . . . . Hacking | -11 -10 -10 -10 -9 -6 -5 -4 --------- Run | Yrd Mat Min Sub Scr Fac Fac Fac Machines Accessed 8 | . . . . 6 2 . . Terminals 1 | . . . . . 1 . . Fabricators . | . . . . . . . . Repair Stations . | . . . . . . . . Recycling Units . | . . . . . . . . Scanalyzers . | . . . . . . . . Garrison Access 1 | . . . . . 1 . . Total Hacks 22 | . . . . 19 3 . . Successful 20 | . . . . 19 1 . . Failed 2 | . . . . . 2 . . Catastrophic . | . . . . . . . . Database Lockouts . | . . . . . . . . Manual 2 | . . . . . 2 . . Terminals 1 | . . . . . 1 . . Fabricators . | . . . . . . . . Repair Stations . | . . . . . . . . Recycling Units . | . . . . . . . . Scanalyzers . | . . . . . . . . Garrison Access 2 | . . . . . 2 . . Terminal Hacks 20 | . . . . 19 1 . . Record 17 | . . . . 17 . . . Open Door 1 | . . . . 1 . . . Open DSF 1 | . . . . . 1 . . Proto ID Catalog 1 | . . . . 1 . . . Fabricator Hacks . | . . . . . . . . Repair Station Hacks . | . . . . . . . . Recycling Unit Hacks . | . . . . . . . . Scanalyzer . | . . . . . . . . Garrison Access Hacks . | . . . . . . . . Unauthorized Hacks . | . . . . . . . . Terminals . | . . . . . . . . Fabricators . | . . . . . . . . Repair Stations . | . . . . . . . . Recycling Units . | . . . . . . . . Scanalyzers . | . . . . . . . . Garrison Access . | . . . . . . . . Data Cores Recovered . | . . . . . . . . Used . | . . . . . . . . Hacking Detections 2 | . . . . . 2 . . Full Trace Events . | . . . . . . . . Feedback Events . | . . . . . . . . Feedback Blocked . | . . . . . . . . Robot Schematics Acquired . | . . . . . . . . Robots Built . | . . . . . . . . Authchips . | . . . . . . . . Time . | . . . . . . . . Total Robot Build Rating . | . . . . . . . . Part Schematics Acquired . | . . . . . . . . Parts Built . | . . . . . . . . Authchips . | . . . . . . . . Time . | . . . . . . . . Total Part Build Rating . | . . . . . . . . Part Studies Acquired . | . . . . . . . . Parts Repaired . | . . . . . . . . Time . | . . . . . . . . Parts Recycled . | . . . . . . . . Recycled Matter . | . . . . . . . . Retrieved Matter . | . . . . . . . . Retrieved Components . | . . . . . . . . Parts Scanalyzed . | . . . . . . . . Part Schematics Acquired . | . . . . . . . . Parts Damaged . | . . . . . . . . Bothacking | -11 -10 -10 -10 -9 -6 -5 -4 ------------ Run | Yrd Mat Min Sub Scr Fac Fac Fac Used RIF Installer . | . . . . . . . . Robots Hacked . | . . . . . . . . Non-combat . | . . . . . . . . Combat . | . . . . . . . . Robot Hacks Applied . | . . . . . . . . Relay Couplers Released . | . . . . . . . . Fabnet Peak Effective % . | . . . . . . . . Robots Rewired . | . . . . . . . . Allies Hacked . | . . . . . . . . Hacks Repelled . | . . . . . . . . Allies | -11 -10 -10 -10 -9 -6 -5 -4 -------- Run | Yrd Mat Min Sub Scr Fac Fac Fac Total Allies . | . . . . . . . . Largest Group . | . . . . . . . . Highest-Rated Group . | . . . . . . . . Highest-Rated Ally . | . . . . . . . . Initial UFD Resources 27 | . . . . . 22 25 27 Total Orders . | . . . . . . . . Ally Attacks . | . . . . . . . . Total Damage . | . . . . . . . . Kills . | . . . . . . . . Allies Corrupted . | . . . . . . . . Allies Melted 3 | . . . . 3 . . . Intel | -11 -10 -10 -10 -9 -6 -5 -4 ------- Run | Yrd Mat Min Sub Scr Fac Fac Fac Active Infowar (turns) 33 | . . . . . 33 . . Jamming 33 | . . . . . 33 . . Robot Analysis Total . | . . . . . . . . Derelict Logs Recovered 1 | . . . 1 . . . . Drone Launches . | . . . . . . . . Drone Recoveries . | . . . . . . . . Exploration | -11 -10 -10 -10 -9 -6 -5 -4 ------------- Run | Yrd Mat Min Sub Scr Fac Fac Fac Turns Passed 4886 | 48 17 309 140 2373 908 213 878 Spaces Moved 3099 | 44 22 166 88 1453 583 190 553 Core 28 | 11 . . . . 7 . 10 Treads 1881 | . . 166 88 1453 174 . . Legs 309 | . . . . . . . 309 Wheels 881 | 33 22 . . . 402 190 234 Hover . | . . . . . . . . Flight . | . . . . . . . . Fastest Speed 50 | 50 80 160 160 160 80 110 86 Average Speed 141 | 72 80 160 160 160 122 110 124 Slowest Speed 650 | 80 80 160 160 170 200 110 650 Overloaded Moves . | . . . . . . . . Propulsion Burnouts . | . . . . . . . . Robots Hopped . | . . . . . . . . Potential Cave-ins 26 | . . . . 2 . . 24 Cave-ins Triggered 4 | . . . . 1 . . 3 Exploration Rate (%) 23 | 3 6 45 8 92 17 6 14 Regions Visited 7 Branch Regions 3 Pre-discovered Areas 2 | . . . . 2 . . . Known Exits Taken . | . . . . . . . . Unknown Exits Taken 7 | 1 1 1 1 1 1 1 . Scrap Searched 4 | . . 1 . 3 . . . Spaces Dug 34 | . . . . 8 . . 26 Terrain Destroyed 34 | . . . . 8 . . 26 Melee 34 | . . . . 8 . . 26 Projectile . | . . . . . . . . AOE . | . . . . . . . . Terrain Rammed . | . . . . . . . . Walls Destroyed . | . . . . . . . . Machines Disabled . | . . . . . . . . Actions | -11 -10 -10 -10 -9 -6 -5 -4 --------- Run | Yrd Mat Min Sub Scr Fac Fac Fac Total 3403 | 59 21 187 87 1483 710 194 662 Wait 46 | . . 1 . 1 31 . 13 Move 3091 | 43 21 165 87 1452 582 189 552 Hop . | . . . . . . . . Pick Up 62 | 10 . 3 . 8 21 2 18 Fast Attach . | . . . . . . . . Attach 51 | 6 . 1 . 3 21 2 18 Detach 6 | . . . . 2 3 . 1 Swap 6 | . . 2 . 1 1 . 2 Drop 15 | . . 3 . 3 5 1 3 Fire 11 | . . 11 . . . . . Melee 112 | . . . . 12 46 . 54 Ram . | . . . . . . . . Kick . | . . . . . . . . Crush 1 | . . 1 . . . . . Escape Stasis 1 | . . . . . . . 1 Rewire 1 | . . . . 1 . . . Trap . | . . . . . . . . Miscellaneous . | . . . . . . . . Route ------- -11/Scrapyard -10/Materials -10/Mines -10/Subcaves -9/Scraptown (discovered 2 exits: *Fac x2) -6/Factory -5/Factory -4/Factory History --------- Turn | Location | Event 10 | -11/Scrapyard | Discovered new exit (range 16) 49 | -11/Scrapyard | Entered Materials 49 | -10/Materials | Discovered new exit (range 8) 66 | -10/Materials | Entered Mines 305 | -10/Mines | Build established: Mutant 352 | -10/Mines | Discovered new exit (range 13) 375 | -10/Mines | Entered Subcaves 376 | -10/Subcaves | Approached by a straggling Scientist 390 | -10/Subcaves | Learned 2 Materials zone layouts 426 | -10/Subcaves | Shifting Twisted Machinery released Sub. Beam Cannon 513 | -10/Subcaves | Scientist uncovered a shortcut to Scraptown 515 | -10/Subcaves | Entered Scraptown 587 | -9/Scraptown | Learned location of Extension (-6) 893 | -9/Scraptown | Visited The Evicted 987 | -9/Scraptown | Visited Cyclists 1055 | -9/Scraptown | Visited Cave Peace 1100 | -9/Scraptown | Visited SPCMW 1398 | -9/Scraptown | Discovered new exit (range 9) 1532 | -9/Scraptown | Visited Comm Corps 1614 | -9/Scraptown | Visited TADAMA 1660 | -9/Scraptown | Visited UFD Registry 1660 | -9/Scraptown | Registered with UFD as "Hammerforce" 1695 | -9/Scraptown | Visited Scrap Suit Storage 1743 | -9/Scraptown | Visited DA-N13 Charitable Foundation 1780 | -9/Scraptown | Visited Chapter 10 2071 | -9/Scraptown | Visited Sword Containment 2103 | -9/Scraptown | Visited Scrapoid Pod Storage 2140 | -9/Scraptown | Visited Curators Association 2198 | -9/Scraptown | Discovered new exit (range 5) 2331 | -9/Scraptown | Visited A0-MCA Data Center 2340 | -9/Scraptown | Given a B- rating by A0-MCA 2343 | -9/Scraptown | Found A0-MCA's Component Scanner 2381 | -9/Scraptown | Visited Science Guys 2443 | -9/Scraptown | Visited Modified Component R&D 2606 | -9/Scraptown | Found Companion Sword 2678 | -9/Scraptown | Met Optimus 2678 | -9/Scraptown | Accepted into 0bPrime 2761 | -9/Scraptown | Visited Junk Repository 2793 | -9/Scraptown | Civil war broke out across Scraptown 2868 | -9/Scraptown | Crushed by falling debris 2868 | -9/Scraptown | Core integrity fell below 50% 2881 | -9/Scraptown | Lost 13 allies 2887 | -9/Scraptown | Core integrity fell below 20% 2888 | -9/Scraptown | Entered Factory 2888 | -6/Factory | Evolved 8 slots: Power x1, Propulsion x2, Utility x5 3069 | -6/Factory | Lost 3 parts (1p1n1u) 3285 | -6/Factory | Lost 5 parts (1p1n3u) 3662 | -6/Factory | Core integrity fell below 50% 3744 | -6/Factory | Discovered new exit (range 8) 3796 | -6/Factory | Entered another Factory area 3796 | -5/Factory | Evolved 2 slots: Utility x1, Weapon x1 3837 | -5/Factory | Build established: Gladiator 4003 | -5/Factory | Discovered new exit (range 5) 4009 | -5/Factory | Entered another Factory area 4009 | -4/Factory | Evolved 2 slots: Utility x2 4542 | -4/Factory | Crushed by falling debris 4569 | -4/Factory | Crushed by falling debris 4572 | -4/Factory | Crushed by falling debris 4572 | -4/Factory | System corruption reached 10% 4603 | -4/Factory | Lost 10 parts (1p1n8u) 4730 | -4/Factory | Lost 6 parts (1p2n1u2w) 4811 | -4/Factory | Core integrity fell below 50% 4844 | -4/Factory | Lost 4 parts (3n1u) 4881 | -4/Factory | Core integrity fell below 20% 4887 | -4/Factory | Destroyed by S-27 Virus with Autogun Last Messages --------------- 04844_ Destroyed VTOL Module. 04847_ S-27 Virus destroyed. 04850_ Companion Sword destroyed. Companion Sword: "Goodbye, friend." 04854_ Com. Wheel destroyed. 04862_ Penetrated by Slug. 04862_ Hrd. Heavy Armor Plating destroyed. 04862_ Imp. Fusion Compressor destroyed. 04863_ :YZ%E/H XL M5Q9QRKN6A=D83 04864_ Slug penetrates Wall. 04869_ The unstable cave ceiling collapses. 04869_ Autogun crushed. 04870_ Slug penetrates Wall. 04873_ S-27 Virus destroyed. 04876_ Graphene Brace destroyed. 04878_ Mic. Fission Core destroyed. 04879_ Penetrated by Slug. 04882_ Imp. Target Analyzer destroyed. 04884_ Critical hit (Burn: +37). 04884_ Penetrated by Slug. Map ----- +----------------------------------------------------+ | ?????????????????????????????????????????????????? | | ?????????????????????????????????????????????????? | | ??????????????????????##??#??????????????????????? | | ????????????????????? "????????????????????? | | ????????????????????? "?"??????????????????? | | ????????????????????? " "??????????????????? | | ????????????????????# ?????????????????? | | ????????????????????# ????????????????? | | ????????????????????# #???????????????? | | ????????????????????# #???????????????? | | ############????????# #???????????????? | | ##??????## #???????????????? | | "] "##?????# ##??????????????? | | " # ##????# #??????????????? | | ## ###### #??????????????? | | [ ### ## #??????????????? | | #?#### = #??????????????? | | """"""" #??##%*%[ #??????????????? | | """"""" #???##== s ####### #??????????????? | | """"""" #????#####s #??? #??????????????????? | | """"""" #????????# #??? #??????????????????? | | #???????## ##? +??????????????????? | | ? #???????# Y #? #??????????????????? | | ####+#######???????# s # #??????????????????? | | ???????????????????# s # #??????????????????? | | ???????????????????# s @ #??????????????????? | | ???????????????????# # #??????????????????? | | ???????????????????### ########??????????????????? | | ???????????????????? #?????????????????????????? | | ?????????????????? ?????????????????????????? | | ????????????????? ?????????????????????????? | | ??????????????? "" ?????????????????????????? | | ?????????????? """ ?????????????????????????? | | ????????????? ?? F" ?????????????????????????? | | ????????????? ?? ??????????????????????????????? | | ??????????????? ???????????????????????????????? | | ??????????????? ????????????????????????????????? | | ?????????????????????????????????????????????????? | | ?????????????????????????????????????????????????? | | ?????????????????????????????????????????????????? | | ?????????????????????????????????????????????????? | | ?????????????????????????????????????????????????? | | ?????????????????????????????????????????????????? | | ?????????????????????????????????????????????????? | | ?????????????????????????????????????????????????? | | ?????????????????????????????????????????????????? | | ?????????????????????????????????????????????????? | | ?????????????????????????????????????????????????? | | ?????????????????????????????????????????????????? | | ?????????????????????????????????????????????????? | +----------------------------------------------------+ Best States ------------- Heat Dissipation 43 Energy Generation 23 Energy Capacity 250 Matter Stores 300 Matter Capacity 300 Sight Range 16 Terrain Scan Density 10 Jamming Range 12 Armor Coverage 600 Resistance: KI 30 Core Shielding 20 Propulsion Shielding 66 Evasion (%) 55 Melee Accuracy 15 Target Analysis 12 Core Analysis 6 Recoil Reduction 2 Item Schematics ----------------- None Robot Schematics ------------------ None Fabricated ------------ Nothing Repaired ---------- Nothing Studied --------- None Alien Tech Used ----------------- None Achievements -------------- I Laugh At Your Crits Nice Directions, Buddy Plot Armor Wiki Contributor Challenges ------------ None Game ------ Seed CombatTrapSource Manual? 0 Play Time 00:46:21 Cumulative 16.6 hours Start 2026.08.30 @ 21:14:42 End 2026.08.30 @ 22:02:05 Sessions 1 Manual Loads 0 Difficulty Rogue Special Mode None Game No. 33 Rogue 32 Adventurer 1 Explorer 0 Win Type - Total 0 Types 0/0/0/0/0/0/0/0/0/0 Lore% 20 Gallery% 21 Achievement% 18 Wizard Run 0 Options --------- Layout 0 ASCII 0 Keyboard 0 Movement Mouse Keybinds 0 Fullscreen 2 Font 18/SmallcapsGlow Map View 38x25 Zoom Use 98% Tactical HUD 1 Map Filters NONE Filters NONE Steam 1 RUN: 76315d67-3396-4e56-8d43-6c8994b7f0ef